bitfinex/quotes_SOLUSD_20250920
["timestamp","ask_amount","ask_price","bid_price","bid_amount"]
[1758377487862,19.8477507,237.52,237.51,0.1]
[1758377489361,19.1877507,237.52,237.51,0.1]
[1758377489583,19.8477507,237.52,237.51,0.1]
[1758377489871,22.65334713,237.52,237.51,0.1]
[1758377491481,25.77070366,237.52,237.51,0.1]
[1758377502974,23.45322221,237.52,237.51,0.1]
[1758377503288,25.77070366,237.52,237.51,0.1]
[1758377503474,22.79322221,237.52,237.51,0.79]
[1758377504187,53.99322221,237.52,237.51,0.79]
[1758377504868,41.33312473,237.52,237.51,0.79]
[1758377505067,53.9937565,237.52,237.51,0.79]
[1758377510471,18.58358473,237.52,237.51,0.79]
[1758377511080,5.92295296,237.52,237.51,0.79]
[1758377514874,5.92295296,237.52,237.51,5.00034903]
[1758377518693,5.92295296,237.52,237.51,6.48474889]
[1758377522592,5.92295296,237.52,237.51,5.00034903]
[1758377523480,6.63295296,237.52,237.51,0.1]
[1758377523684,12.32752459,237.52,237.51,0.1]
[1758377524993,10.84312473,237.52,237.51,0.1]
[1758377525187,6.63295296,237.52,237.51,0.1]
[1758377525368,5.92295296,237.52,237.51,0.1]
[1758377526295,6.63295296,237.52,237.51,0.1]
[1758377526504,10.84392153,237.52,237.51,0.1]
[1758377528682,10.13392153,237.52,237.51,0.1]
[1758377529199,10.84392153,237.52,237.51,0.1]
[1758377530000,15.0540933,237.52,237.51,0.1]
[1758377531005,10.84392153,237.52,237.51,0.1]
[1758377531209,6.63295296,237.52,237.51,0.1]
[1758377531507,11.52378935,237.52,237.51,0.1]
[1758377531903,6.63295296,237.52,237.51,0.1]
[1758377532695,5.92295296,237.52,237.51,0.1]
[1758377532904,5.92295296,237.52,237.51,0.78]
[1758377533802,5.92295296,237.52,237.51,4.99034903]
[1758377534793,5.92295296,237.52,237.51,0.78]
[1758377535006,5.92295296,237.52,237.51,0.1]
[1758377535385,5.92295296,237.52,237.51,0.78]
[1758377536209,5.92295296,237.52,237.51,0.1]
[1758377541813,6.63295296,237.52,237.51,0.1]
[1758377542709,5.92295296,237.52,237.51,0.1]
[1758377546198,5.92295296,237.52,237.51,4.31034903]
[1758377546405,5.92295296,237.52,237.51,5.02034903]
[1758377546710,5.92295296,237.52,237.51,6.50474889]
[1758377546887,5.92295296,237.52,237.51,5.02034903]
[1758377549199,5.92295296,237.52,237.51,4.31034903]
[1758377549498,5.92295296,237.52,237.51,5.02034903]
[1758377550321,5.92295296,237.52,237.51,20.1003429]
[1758377550524,2.80559643,237.52,237.51,20.1003429]
[1758377551707,2.80559643,237.52,237.51,52.2003429]
[1758377553018,43.24974254,237.6,237.51,63.01053863]
[1758377553239,5.95429442,237.59,237.56,1.48439986]
[1758377553403,5.95429442,237.58,237.57,32.81]
[1758377553602,5.95429442,237.58,237.57,32.1]
[1758377555023,5.95429442,237.58,237.54,4.20970433]
[1758377555213,6.67429442,237.57,237.55,32.08]
[1758377555407,6.67429442,237.56,237.55,32.08]
[1758377557923,5.95429442,237.56,237.55,32.08]
[1758377558924,5.95429442,237.56,237.55,32.79]
[1758377559124,5.95429442,237.56,237.55,34.27439986]
[1758377559302,5.95429442,237.56,237.55,36.99964007]
[1758377559903,6.67429442,237.56,237.51,0.1]
[1758377560213,5.95429442,237.55,237.52,32.12]
[1758377560413,6.67429442,237.54,237.52,32.12]
[1758377560620,5.95429442,237.53,237.52,32.12]
[1758377561130,6.67429442,237.53,237.52,32.14]
[1758377562405,5.95429442,237.53,237.52,32.14]
[1758377564411,2.82047495,237.53,237.52,32.14]
[1758377565537,5.95183026,237.53,237.52,32.14]
[1758377566110,5.95183026,237.53,237.52,32.12]
[1758377566111,6.67183026,237.53,237.52,32.12]
[1758377566309,6.67166398,237.53,237.52,32.12]
[1758377567731,10.88168621,237.53,237.52,32.12]
[1758377568040,10.88168621,237.53,237.51,0.1]
[1758377568337,5.95166398,237.52,237.51,0.1]
[1758377568732,6.67166398,237.52,237.51,32.22]
[1758377569336,6.67166398,237.52,237.51,0.1]
[1758377569531,10.88183575,237.52,237.51,32.22]
[1758377569738,10.88183575,237.52,237.51,0.1]
[1758377569915,10.88183575,237.52,237.51,32.22]
[1758377570921,10.16183575,237.52,237.51,32.22]
[1758377571123,10.88183575,237.52,237.51,32.22]
[1758377574253,10.88210856,237.52,237.51,32.22]
[1758377578639,10.16210856,237.52,237.51,32.22]
[1758377580345,10.84210856,237.52,237.51,32.22]
[1758377582244,10.16210856,237.52,237.51,32.2]
[1758377584024,10.86210856,237.52,237.51,32.2]
[1758377584224,10.16210856,237.52,237.51,32.2]
[1758377585748,5.95193679,237.52,237.51,32.2]
[1758377587668,5.95193679,237.52,237.51,32.91]
[1758377593137,5.95193679,237.52,237.51,32.2]
[1758377593456,5.95193679,237.52,237.51,32.91]
[1758377597164,5.95193679,237.52,237.51,32.2]
[1758377604062,6.65193679,237.52,237.51,32.2]
[1758377604569,5.95193679,237.52,237.51,0.1]
[1758377604861,5.95193679,237.52,237.51,32.2]
[1758377606140,5.95193679,237.52,237.51,37.11034903]
[1758377612273,5.95395244,237.52,237.51,37.11034903]
[1758377614678,5.95395244,237.52,237.51,36.41034903]
[1758377614868,5.95395244,237.52,237.51,53.02514491]
[1758377618994,5.95395244,237.52,237.51,48.79479588]
[1758377619561,5.95395244,237.52,237.51,48.09479588]
[1758377621960,5.95395244,237.52,237.51,52.30514491]
[1758377622185,5.95395244,237.52,237.51,53.00514491]
[1758377623488,5.95395244,237.52,237.51,20.92514491]
[1758377623673,5.95395244,237.52,237.51,53.00514491]
[1758377624081,5.95300427,237.52,237.51,53.00514491]
[1758377624385,2.82047495,237.52,237.51,53.00514491]
[1758377628588,2.82047495,237.52,237.51,20.92514491]
[1758377628790,2.82047495,237.52,237.51,53.00514491]
[1758377631768,2.82047495,237.52,237.51,52.16965303]
[1758377636690,2.82047495,237.52,237.51,51.46965303]
[1758377639088,3.52974254,237.59,237.53,0.28432314]
[1758377639392,2.81978463,237.58,237.57,1.48370999]
[1758377639691,2.81978463,237.58,237.57,33.56370999]
[1758377641693,3.52978463,237.58,237.57,33.56370999]
[1758377641891,2.81978463,237.58,237.57,33.56370999]
[1758377642588,2.81978463,237.58,237.57,51.36858968]
[1758377642786,2.81978463,237.58,237.57,49.88487969]
[1758377642966,2.81978463,237.58,237.57,51.36858968]
[1758377643173,2.81978463,237.58,237.57,52.02858968]
[1758377643495,2.81978463,237.58,237.57,55.55833222]
[1758377645389,2.81978463,237.6,237.58,17.80463043]
[1758377645697,0.69,237.61,237.59,32.08]
[1758377645993,3.50629249,237.6,237.59,32.08]
[1758377646893,3.50629249,237.6,237.59,33.56370999]
[1758377648394,0.69,237.62,237.59,33.56370999]
[1758377648580,2.81629249,237.61,237.59,37.77259004]
[1758377648898,2.81629249,237.6,237.59,51.36818405]
[1758377649706,2.81629249,237.6,237.59,52.02818405]
[1758377649876,70.2,237.64,237.59,52.02818405]
[1758377649877,2.81629249,237.61,237.59,19.94818405]
[1758377650071,2.81629249,237.6,237.59,49.88447406]
[1758377650296,2.81629249,237.63,237.6,13.59559401]
[1758377650484,2.81629249,237.62,237.61,36.28857708]
[1758377650886,3.50629249,237.63,237.61,36.28857708]
[1758377651088,2.81629249,237.62,237.61,36.28857708]
[1758377651279,2.81629249,237.62,237.61,37.77228707]
[1758377652380,3.50629249,237.63,237.61,37.77228707]
[1758377653207,2.81629249,237.62,237.61,51.36788108]
[1758377653404,2.81629249,237.63,237.61,51.36788108]
[1758377653605,2.81629249,237.62,237.61,51.36788108]
[1758377653793,2.81629249,237.63,237.61,51.36788108]
[1758377654104,2.81629249,237.62,237.61,50.54417109]
[1758377654304,2.81629249,237.66,237.62,13.59559401]
[1758377654490,2.81629249,237.65,237.63,32.08]
[1758377654806,2.81629249,237.64,237.63,46.33559401]
[1758377654978,2.81629249,237.65,237.63,32.08]
[1758377655175,2.81629249,237.64,237.63,45.66328412]
[1758377655396,3.50629249,237.68,237.64,13.59559401]
[1758377655605,2.81629249,237.67,237.65,32.08]
[1758377655807,0.69,237.68,237.65,32.08]
[1758377655808,2.81629249,237.66,237.65,45.67559401]
[1758377656106,2.81629249,237.67,237.65,47.819304]
[1758377656400,0.69,237.69,237.66,1.48370999]
[1758377656610,2.81159372,237.68,237.67,32.08]
[1758377657103,3.50159372,237.68,237.67,32.08]
[1758377659314,2.81159372,237.68,237.67,32.08]
[1758377659887,2.81159372,237.68,237.67,51.36681862]
[1758377660196,2.81159372,237.69,237.67,51.36681862]
[1758377660395,2.81159372,237.69,237.67,52.02681862]
[1758377660800,2.81159372,237.69,237.68,1.48370999]
[1758377661399,0.69,237.7,237.68,1.48370999]
[1758377661702,3.50159372,237.7,237.69,32.06]
[1758377661904,2.81159372,237.71,237.69,32.06]
[1758377662105,2.81159372,237.7,237.69,32.06]
[1758377662302,3.50159372,237.71,237.69,32.06]
[1758377664603,0.69,237.71,237.69,32.06]
[1758377665508,2.81159372,237.73,237.7,0.66]
[1758377665807,4.98530371,237.72,237.71,32.06]
[1758377666510,9.19193335,237.72,237.71,32.06]
[1758377667012,6.38033963,237.72,237.71,32.06]
[1758377667205,9.19193335,237.72,237.71,32.06]
[1758377667906,6.38033963,237.72,237.67,13.59559401]
[1758377668099,0.72,237.71,237.69,13.59559401]
[1758377668408,2.81159372,237.73,237.7,32.74]
[1758377668615,0.72,237.73,237.7,32.06]
[1758377668918,12.70837396,237.74,237.7,32.06]
[1758377669092,2.81159372,237.73,237.71,0.68]
[1758377669508,7.73809785,237.73,237.72,32.06]
[1758377670713,7.01809785,237.73,237.72,32.06]
[1758377670891,7.01809785,237.73,237.7,0.68]
[1758377671214,2.20370999,237.72,237.71,32.06]
[1758377671901,0.72,237.72,237.71,32.06]
[1758377673416,4.20680661,237.71,237.63,13.59559401]
[1758377673606,1.48370999,237.69,237.65,13.59559401]
[1758377673914,0.72,237.68,237.63,0.68]
[1758377674213,0.72,237.67,237.65,13.59559401]
[1758377674511,7.01906478,237.68,237.65,13.59559401]
[1758377674713,2.81159372,237.67,237.65,13.59559401]
[1758377674922,2.81159372,237.67,237.66,32.06]
[1758377675234,2.81159372,237.67,237.63,0.96432314]
[1758377675416,2.81159372,237.67,237.65,13.59559401]
[1758377675916,7.01910834,237.67,237.66,32.06]
[1758377676214,7.01910834,237.67,237.65,13.59559401]
[1758377676420,7.73910834,237.67,237.65,13.59559401]
[1758377676611,7.73910834,237.67,237.66,32.06]
[1758377676813,7.01910834,237.67,237.66,32.06]
[1758377677015,7.73910834,237.67,237.66,32.06]
[1758377677208,7.01910834,237.67,237.66,32.06]
[1758377677412,2.81159372,237.67,237.64,0.68]
[1758377677614,5.62318744,237.68,237.66,32.06]
[1758377677798,6.34318744,237.68,237.66,32.06]
[1758377678002,5.62318744,237.68,237.66,32.06]
[1758377678209,5.62318744,237.68,237.66,32.74]
[1758377679322,2.81159372,237.67,237.66,32.74]
[1758377680504,2.81159372,237.67,237.66,0.68]
[1758377680812,2.81159372,237.67,237.66,32.74]
[1758377680997,4.20731529,237.67,237.66,32.74]
[1758377681200,7.01890901,237.67,237.66,32.74]
[1758377681417,2.81159372,237.68,237.66,32.74]
[1758377681622,2.81159372,237.67,237.66,32.74]
[1758377682193,2.81159372,237.68,237.66,32.74]
[1758377682397,2.81159372,237.67,237.66,32.74]
[1758377682594,2.81159372,237.68,237.66,32.74]
[1758377682791,2.81159372,237.67,237.66,32.74]
[1758377683103,3.53159372,237.68,237.66,32.06]
[1758377683303,2.81159372,237.67,237.66,32.74]
[1758377683693,2.81159372,237.67,237.66,32.06]
[1758377687910,2.81159372,237.67,237.66,32.74]
[1758377688221,3.86478083,237.67,237.66,32.06]
[1758377691399,3.86478083,237.67,237.66,32.74]
[1758377691719,3.86478083,237.67,237.66,32.06]
[1758377694621,4.58478083,237.67,237.66,32.06]
[1758377695013,3.86478083,237.67,237.66,32.06]
[1758377698129,6.99851508,237.67,237.66,32.06]
[1758377700212,6.99851508,237.67,237.64,0.68]
[1758377700413,3.86478083,237.66,237.65,32.06]
[1758377700713,3.86478083,237.66,237.64,13.59559401]
[1758377700924,4.20752388,237.67,237.65,32.06]
[1758377701120,3.87406565,237.66,237.65,32.06]
[1758377701629,3.87406577,237.66,237.65,32.06]
[1758377701834,3.87406577,237.66,237.62,14.27559401]
[1758377702133,3.87409173,237.65,237.64,13.59559401]
[1758377702312,3.87409173,237.65,237.64,14.29559401]
[1758377703540,2.82089121,237.65,237.64,14.29559401]
[1758377704033,2.82089121,237.65,237.64,46.35559401]
[1758377705904,2.82089121,237.65,237.62,4.20838514]
[1758377706109,2.82089121,237.64,237.63,45.65559401]
[1758377707634,11.07814198,237.64,237.58,14.29559401]
[1758377707840,4.55412466,237.63,237.58,14.29559401]
[1758377708144,4.55412466,237.63,237.57,2.31595648]
[1758377708145,2.82089121,237.62,237.6,13.59559401]
[1758377708325,0.68,237.63,237.61,32.06]
[1758377708509,2.82027972,237.62,237.61,45.65559401]
[1758377710023,3.50027972,237.62,237.61,45.65559401]
[1758377711131,3.50027972,237.62,237.61,13.59559401]
[1758377711439,2.82027972,237.62,237.61,45.65559401]
[1758377712036,2.82027972,237.62,237.61,13.59559401]
[1758377712342,2.82027972,237.62,237.61,45.65559401]
[1758377712838,2.82027972,237.62,237.59,0.98432314]
[1758377712839,7.02867968,237.62,237.59,0.7]
[1758377713045,4.55367397,237.61,237.58,13.59559401]
[1758377713248,2.82027972,237.6,237.59,46.35559401]
[1758377713619,2.82027972,237.6,237.59,46.63991715]
[1758377713818,7.70814928,237.65,237.6,13.59559401]
[1758377714039,4.55356296,237.64,237.61,32.06]
[1758377714240,2.82027972,237.63,237.62,13.59559401]
[1758377714426,2.82027972,237.63,237.62,14.29559401]
[1758377715629,2.82027972,237.63,237.62,18.50399397]
[1758377715830,2.82027972,237.63,237.62,14.29559401]
[1758377717446,2.82027972,237.63,237.62,13.59559401]
[1758377717950,4.55357306,237.63,237.62,45.65559401]
[1758377719341,4.55357306,237.63,237.62,13.59559401]
[1758377719546,4.55357306,237.63,237.62,45.65559401]
[1758377719734,3.87357306,237.63,237.62,45.65559401]
[1758377721044,4.55357306,237.63,237.62,45.65559401]
[1758377721726,3.87357306,237.63,237.62,45.65559401]
[1758377723846,3.87357306,237.63,237.62,46.35559401]
[1758377724149,3.87357306,237.63,237.62,45.65559401]
[1758377730639,3.87357306,237.63,237.62,46.34559401]
[1758377736036,3.87357306,237.63,237.62,45.65559401]
[1758377740649,3.87357306,237.63,237.62,46.34559401]
[1758377743144,3.87357352,237.63,237.62,50.55399397]
[1758377744360,3.87357352,237.63,237.62,53.15427359]
[1758377744562,2.82027972,237.63,237.62,53.15427359]
[1758377745063,2.82027972,237.63,237.62,63.84971515]
[1758377749951,2.82027972,237.63,237.62,31.78971515]
[1758377750153,2.82027972,237.63,237.62,31.09971515]
[1758377750341,3.48027972,237.63,237.62,60.84375867]
[1758377750545,2.82027972,237.63,237.62,60.84375867]
[1758377752148,2.82027972,237.63,237.62,28.78375867]
[1758377752356,2.82027972,237.63,237.62,60.84375867]
[1758377754270,2.82027972,237.63,237.62,62.32611159]
[1758377754949,2.82027972,237.63,237.62,63.01611159]
[1758377756272,2.82027972,237.63,237.62,62.32611159]
[1758377757051,2.82027972,237.63,237.62,63.01611159]
[1758377759779,2.82027972,237.63,237.62,62.32611159]
[1758377761357,2.82027972,237.63,237.62,63.01611159]
[1758377761668,0.69,237.66,237.63,13.87991715]
[1758377761848,3.51477211,237.65,237.64,38.03472184]
[1758377762053,6.65293762,237.65,237.64,32.06]
[1758377762466,18.65240291,237.65,237.64,32.06]
[1758377762860,22.86027162,237.65,237.64,32.06]
[1758377763157,22.86027162,237.65,237.59,1.48235292]
[1758377763367,6.63293762,237.64,237.61,13.59559401]
[1758377763557,3.49477211,237.63,237.62,32.06]
[1758377764080,16.14686076,237.63,237.62,32.06]
[1758377767982,20.35508481,237.63,237.61,13.59559401]
[1758377768180,16.8603127,237.63,237.62,32.06]
[1758377768493,22.82208562,237.63,237.62,32.06]
[1758377768690,23.49208562,237.63,237.62,32.06]
[1758377769388,19.28386157,237.63,237.62,32.06]
[1758377772085,16.14607027,237.63,237.62,32.06]
[1758377774704,23.4910988,237.63,237.6,13.59559401]
[1758377775001,3.49398162,237.62,237.61,13.59559401]
[1758377775504,3.49398162,237.62,237.61,45.65559401]
[1758377775868,3.49398162,237.62,237.57,0.67]
[1758377776170,3.49398162,237.61,237.58,48.09227007]
[1758377776367,2.82398162,237.6,237.58,48.09227007]
[1758377776585,0.67,237.61,237.6,13.59559401]
[1758377776882,3.49269076,237.61,237.6,45.65559401]
[1758377777079,3.49269076,237.61,237.6,13.59559401]
[1758377777393,3.49269076,237.61,237.6,45.65559401]
[1758377778096,2.82269076,237.61,237.6,45.65559401]
[1758377778984,2.82269076,237.61,237.6,13.59559401]
[1758377779197,2.82269076,237.61,237.6,45.65559401]
[1758377783494,2.82269076,237.61,237.6,46.32559401]
[1758377784709,2.82269076,237.61,237.6,47.80794693]
[1758377785587,2.82269076,237.61,237.6,15.74794693]
[1758377785989,2.82269076,237.61,237.6,47.80794693]
[1758377789209,2.82269076,237.61,237.6,47.13794693]
[1758377791008,2.82269076,237.61,237.6,15.07794693]
[1758377791301,2.82269076,237.61,237.6,51.34670113]
[1758377791500,2.82269076,237.61,237.6,52.00670113]
[1758377794384,2.82269076,237.62,237.6,52.00670113]
[1758377794595,0.67,237.63,237.6,52.00670113]
[1758377794905,3.49242076,237.62,237.6,51.34670113]
[1758377795107,2.82242076,237.61,237.6,51.34670113]
[1758377795323,2.82242076,237.61,237.6,49.86434821]
[1758377795608,2.82242076,237.61,237.6,51.34670113]
[1758377796108,2.82242076,237.62,237.6,51.34670113]
[1758377796404,2.82242076,237.61,237.6,51.34670113]
[1758377797105,3.49242076,237.61,237.6,13.59559401]
[1758377797401,3.49242076,237.61,237.6,45.65559401]
[1758377797917,2.82242076,237.61,237.6,47.13794693]
[1758377798208,2.82242076,237.61,237.6,16.02227007]
[1758377798705,2.82242076,237.61,237.6,48.08227007]
[1758377798904,2.82242076,237.61,237.6,16.02227007]
[1758377799209,2.82242076,237.61,237.6,52.29102427]
[1758377799407,2.82349423,237.65,237.61,13.87991715]
[1758377799590,2.82349423,237.64,237.63,0.28432314]
[1758377799921,2.82349423,237.67,237.63,47.44227007]
[1758377800103,0.67,237.72,237.63,47.44227007]
[1758377800104,2.82349423,237.66,237.65,13.59559401]
[1758377800300,2.82349423,237.66,237.65,14.25559401]
[1758377800600,2.82349423,237.71,237.66,0.28432314]
[1758377800914,2.82349423,237.7,237.69,0.28432314]
[1758377801088,2.82349423,237.7,237.69,51.64943065]
[1758377801412,0.67,237.74,237.71,0.28432314]
[1758377801413,2.82349423,237.73,237.71,0.28432314]
[1758377801581,2.82349423,237.72,237.71,0.28432314]
[1758377801785,2.82349423,237.76,237.73,0.28432314]
[1758377801983,0.67,237.76,237.75,13.59559401]
[1758377802185,3.49177942,237.76,237.75,13.59559401]
[1758377803307,3.49177942,237.76,237.75,45.67559401]
[1758377804105,3.49177942,237.76,237.74,13.59559401]
[1758377804299,4.20575897,237.77,237.75,32.08]
[1758377804596,2.81713273,237.76,237.75,45.67559401]
[1758377804816,3.48713273,237.76,237.75,45.67559401]
[1758377805116,3.48713273,237.76,237.75,13.59559401]
[1758377805319,3.48713273,237.76,237.75,45.67559401]
[1758377806596,0.67,237.76,237.75,45.67559401]
[1758377807000,3.48713273,237.76,237.75,45.67559401]
[1758377807206,0.67,237.76,237.75,45.67559401]
[1758377807695,3.48713273,237.76,237.75,45.67559401]
[1758377807895,0.67,237.76,237.75,45.67559401]
[1758377808119,3.48713273,237.76,237.75,45.67559401]
[1758377808318,0.67,237.76,237.75,45.67559401]
[1758377808518,3.48713273,237.76,237.75,45.67559401]
[1758377808818,7.69305466,237.76,237.72,1.48235292]
[1758377809001,3.48713273,237.75,237.74,13.59559401]
[1758377809208,0.67,237.75,237.74,13.59559401]
[1758377810324,3.48713273,237.77,237.74,13.59559401]
[1758377810494,0.67,237.76,237.75,32.06]
[1758377811505,3.48713273,237.78,237.75,32.06]
[1758377811705,0.67,237.77,237.75,32.06]
[1758377811907,4.87601426,237.76,237.73,13.59559401]
[1758377812101,0.67,237.75,237.74,45.65559401]
[1758377812509,0.67,237.75,237.72,1.48235292]
[1758377812696,7.02314699,237.76,237.71,0.66]
[1758377812697,0.67,237.74,237.73,45.65559401]
[1758377813503,4.87601426,237.76,237.73,45.65559401]
[1758377813704,0.67,237.75,237.73,45.65559401]
[1758377814410,2.81713273,237.78,237.74,0.66]
[1758377814612,2.81713273,237.78,237.75,32.72]
[1758377815126,3.48713273,237.78,237.76,32.06]
[1758377815804,7.69270398,237.78,237.77,32.06]
[1758377816523,4.87557125,237.78,237.77,32.06]
[1758377818409,7.69270398,237.78,237.77,32.06]
[1758377820428,10.00668922,237.78,237.71,12.87364815]
[1758377820611,2.31398524,237.75,237.72,45.65559401]
[1758377820811,0.7,237.74,237.73,32.06]
[1758377821304,2.31398524,237.75,237.73,32.06]
[1758377821508,0.7,237.75,237.73,32.06]
[1758377821719,5.83111797,237.77,237.73,32.06]
[1758377822241,5.83111797,237.77,237.73,32.71]
[1758377822534,4.87592193,237.76,237.74,32.06]
[1758377822842,7.02305466,237.76,237.74,32.06]
[1758377823138,2.81713273,237.75,237.74,32.06]
[1758377823315,2.81713273,237.75,237.74,32.71]
[1758377823717,4.20592193,237.76,237.74,32.71]
[1758377824544,4.20592193,237.76,237.74,32.06]
[1758377825322,7.02305466,237.76,237.74,32.06]
[1758377825524,2.81713273,237.75,237.74,32.06]
[1758377825726,7.69305466,237.76,237.74,32.06]
[1758377826140,2.81713273,237.76,237.74,32.06]
[1758377826318,2.81713273,237.77,237.75,0.65]
[1758377826511,2.81713273,237.77,237.76,32.06]
[1758377827024,2.81713273,237.77,237.75,0.65]
[1758377827224,2.81713273,237.78,237.75,0.65]
[1758377827424,2.81713273,237.78,237.76,32.06]
[1758377827635,4.97554912,237.79,237.76,32.06]
[1758377827820,7.79268185,237.79,237.76,32.06]
[1758377828021,2.81713273,237.78,237.76,32.06]
[1758377828617,4.97554912,237.79,237.76,32.06]
[1758377828816,7.79268185,237.79,237.76,32.06]
[1758377829122,2.81713273,237.78,237.76,32.06]
[1758377830743,7.79268185,237.79,237.76,32.06]
[1758377831043,0.67,237.78,237.77,32.04]
[1758377831220,2.81713273,237.78,237.77,32.04]
[1758377831423,9.43666709,237.79,237.77,32.04]
[1758377831641,7.12268185,237.79,237.77,32.69]
[1758377831844,2.91713273,237.79,237.77,32.69]
[1758377832215,2.81713273,237.78,237.77,32.69]
[1758377832717,2.81713273,237.78,237.77,0.65]
[1758377832922,2.81713273,237.78,237.77,32.69]
[1758377834414,2.81713273,237.78,237.77,46.28559401]
[1758377835442,2.81713273,237.78,237.77,50.49133905]
[1758377835624,2.81713273,237.78,237.77,18.73566219]
[1758377835816,0.1,237.79,237.78,0.28432314]
[1758377836017,0.1,237.79,237.78,18.73548532]
[1758377836238,0.1,237.79,237.78,50.79548532]
[1758377837228,0.1,237.79,237.78,18.73548532]
[1758377837429,0.1,237.79,237.78,50.79548532]
[1758377839236,0.1,237.79,237.78,21.04947056]
[1758377839435,0.1,237.79,237.78,53.10947056]
[1758377840550,0.1,237.79,237.78,21.04947056]
[1758377840744,0.1,237.79,237.78,50.79548532]
[1758377843643,0.1,237.79,237.78,18.73548532]
[1758377843851,0.77,237.79,237.78,13.59559401]
[1758377844348,0.77,237.79,237.78,45.65559401]
[1758377844547,0.1,237.79,237.78,45.65559401]
[1758377845445,0.1,237.79,237.78,46.30559401]
[1758377846368,0.1,237.79,237.78,45.65559401]
[1758377847265,0.1,237.79,237.78,50.80548532]
[1758377848653,0.1,237.79,237.78,18.74548532]
[1758377848868,0.1,237.79,237.78,50.80548532]
[1758377850445,0.1,237.79,237.78,18.74548532]
[1758377850646,0.1,237.79,237.78,50.78548532]
[1758377851043,0.1,237.79,237.78,18.74548532]
[1758377851443,0.78,237.79,237.78,13.59559401]
[1758377851640,0.78,237.79,237.78,45.65559401]
[1758377854157,0.1,237.79,237.78,45.65559401]
[1758377854668,0.78,237.79,237.78,13.59559401]
[1758377854859,0.78,237.79,237.78,45.65559401]
[1758377856362,0.1,237.79,237.78,45.65559401]
[1758377857663,0.78,237.79,237.78,45.65559401]
[1758377858265,0.1,237.79,237.78,45.65559401]
[1758377860178,0.1,237.79,237.78,13.59559401]
[1758377860363,0.1,237.79,237.78,45.63559401]
[1758377862901,0.1,237.79,237.78,50.50116218]
[1758377863174,0.1,237.79,237.78,53.09947056]
[1758377863356,0.1,237.79,237.78,21.05947056]
[1758377863675,0.1,237.79,237.78,53.09947056]
[1758377864767,0.1,237.79,237.78,55.91660329]
[1758377866853,0.1,237.79,237.78,53.60261805]
[1758377867055,0.1,237.79,237.78,55.91660329]
[1758377867259,0.1,237.79,237.78,55.93660329]
[1758377875383,0.1,237.79,237.78,55.91660329]
[1758377877786,0.1,237.79,237.78,55.08246344]
[1758377881384,0.1,237.79,237.78,23.46302025]
[1758377881681,0.1,237.79,237.78,55.48302025]
[1758377884490,0.1,237.79,237.78,23.46302025]
[1758377884680,0.1,237.79,237.78,55.48302025]
[1758377885696,0.1,237.79,237.78,54.40246344]
[1758377885879,0.8,237.79,237.78,22.38246344]
[1758377886198,0.8,237.79,237.78,54.40246344]
[1758377887078,0.8,237.79,237.78,54.42246344]
[1758377887769,0.8,237.79,237.78,52.94261805]
[1758377887975,0.8,237.79,237.78,54.42246344]
[1758377888179,0.8,237.79,237.78,51.60533071]
[1758377888474,0.8,237.79,237.78,54.42573161]
[1758377889389,0.8,237.79,237.78,22.38573161]
[1758377889690,0.8,237.79,237.78,51.60533071]
[1758377893797,0.8,237.79,237.78,13.87991715]
[1758377894172,0.8,237.79,237.78,45.89991715]
[1758377895193,0.8,237.79,237.78,50.10548532]
[1758377896397,0.8,237.79,237.78,45.89991715]
[1758377899291,0.8,237.79,237.78,50.10548532]
[1758377899890,0.1,237.79,237.78,50.10548532]
[1758377900706,0.8,237.79,237.78,50.10548532]
[1758377901785,0.1,237.79,237.78,52.30533071]
[1758377903890,0.1,237.79,237.78,20.28533071]
[1758377904089,0.1,237.79,237.78,51.60533071]
[1758377905305,0.8,237.79,237.78,51.60533071]
[1758377905692,0.1,237.79,237.78,51.60533071]
[1758377912099,0.1,237.79,237.78,52.28533071]
[1758377912412,0.1,237.79,237.78,55.1086353]
[1758377913997,0.1,237.79,237.78,54.4286353]
[1758377917596,0.1,237.79,237.78,55.1086353]
[1758377920400,0.1,237.79,237.78,52.94878991]